[Event "CZE-ch U16 Girls 2020"]
[Site "Kouty nad Desnou"]
[Date "2020.03.07"]
[Round "1.9"]
[White "Habinova, Alice"]
[Black "Londinova, Jasmina Marie"]
[Result "1-0"]
[ECO "C34"]
[WhiteElo "1474"]
[BlackElo "1155"]
[Annotator "NA RC"]
[PlyCount "89"]
[EventDate "2020.03.07"]
[EventCountry "CZE"]
[SourceTitle "playchess.com"]
[Source "ChessBase"]
[SourceQuality "1"]
[TimeControl "5400+30"]

1. e4 {[%emt 0:00:00]} e5 {[%emt 0:00:00]} 2. f4 {[%emt 0:00:00]} exf4 {[%emt 0:00:35]} 3. Nf3 {[%emt 0:00:12]} Nc6 {[%emt 0:00:39]} 4. d4 {[%emt 0:02:56]} d5 {[%emt 0:02:11]} 5. exd5 {[%emt 0:06:28]} Qxd5 {[%emt 0:00:52]} 6. Nc3 {[%emt 0:06:17]} Qd8 {[%emt 0:04:33]} 7. Bxf4 {[%emt 0:02:49]} Bd6 {[%emt 0:04:03]} 8. Qd2 {[%emt 0:02:41]} Nf6 {[%emt 0:08:15]} 9. Bc4 {[%emt 0:06:36]} Bxf4 {[%emt 0:02:15]} 10. Qxf4 {[%emt 0:00:59]} O-O {[%emt 0:02:43]} 11. O-O-O {[%emt 0:04:42]} Ne7 {[%emt 0:05:47]} 12. Ne5 {[%emt 0:04:22]} Ned5 {[%emt 0:08:24]} 13. Nxd5 {[%emt 0:03:06]} Nxd5 {[%emt 0:00:23]} 14. Qg3 {[%emt 0:02:14]} Be6 {[%emt 0:02:34]} 15. h4 {[%emt 0:03:01]} Qe7 {[%emt 0:02:46]} 16. Qb3 {[%emt 0:05:32]} Nb6 {[%emt 0:04:43]} 17. Bxe6 {[%emt 0:03:07]} Qxe6 {[%emt 0:00:44]} 18. Qxe6 {[%emt 0:00:40]} fxe6 {[%emt 0:00:09]} 19. Rhf1 {[%emt 0:02:12]} Rad8 {[%emt 0:01:28]} 20. c3 {[%emt 0:02:36]} Nd5 {[%emt 0:08:07]} 21. Kd2 {[%emt 0:06:46]} Nf6 {[%emt 0:03:31]} 22. Rde1 {[%emt 0:03:23]} c5 {[%emt 0:09:49]} 23. Nf3 {[%emt 0:02:18]} Rfe8 {[%emt 0:02:51]} 24. Kc2 {[%emt 0:02:46]} cxd4 {[%emt 0:01:05]} 25. cxd4 {[%emt 0:03:20]} Nd7 {[%emt 0:02:41]} 26. Rf2 {[%emt 0:02:36]} Nb6 {[%emt 0:02:18]} 27. Rfe2 {[%emt 0:01:37]} Rd6 {[%emt 0:01:46]} 28. a3 {[%emt 0:04:12]} Nd5 {[%emt 0:02:30]} 29. Re4 {[%emt 0:01:54]} Nc7 {[%emt 0:01:18]} 30. Nd2 {[%emt 0:01:59]} Nb5 {[%emt 0:02:53]} 31. Nb3 {[%emt 0:01:03]} h6 {[%emt 0:02:29]} 32. a4 {[%emt 0:02:21]} Nc7 {[%emt 0:00:14]} 33. Nc5 {[%emt 0:01:52]} b6 {[%emt 0:01:04]} 34. Nb3 {[%emt 0:01:23]} Kh7 {[%emt 0:00:52]} 35. Kd3 {[%emt 0:01:41]} Kg6 {[%emt 0:02:18]} 36. Nd2 {[%emt 0:01:15]} Kh7 {[%emt 0:02:47]} 37. Nc4 {[%emt 0:04:57]} Rc6 {[%emt 0:01:08]} 38. Ne5 {[%emt 0:01:41]} Rd6 {[%emt 0:00:47]} 39. Nc4 {[%emt 0:00:30]} Rc6 {[%emt 0:01:45]} 40. Ne5 {[%emt 0:00:00]} Rd6 {[%emt 0:00:00]} 41. Nc4 {[%emt 0:00:00]} Rc6 {[%emt 0:00:00]} 42. Ne5 {[%emt 0:00:00]} Rd6 {[%emt 0:00:00]} 43. Nc4 {[%emt 0:00:00]} Rc6 {[%emt 0:00:00]} 44. Re5 {[%emt 0:00:00]} a5 {[%emt 0:00:00]} 45. R5e4 {[%emt 0:00:00]} 1-0

[Event "CZE-ch U16 Girls 2020"]
[Site "Kouty nad Desnou"]
[Date "2020.03.08"]
[Round "2.1"]
[White "Strnadova, Monika"]
[Black "Dvorakova, Olga"]
[Result "0-1"]
[ECO "B14"]
[WhiteElo "1514"]
[BlackElo "1793"]
[Annotator "NA"]
[PlyCount "38"]
[EventDate "2020.03.07"]
[EventCountry "CZE"]
[SourceTitle "playchess.com"]
[Source "ChessBase"]
[SourceQuality "1"]
[TimeControl "5400+30"]

1. e4 {[%emt 0:00:00]} c6 {[%emt 0:00:00]} 2. c4 {[%emt 0:00:05]} d5 {[%emt 0:00:32]} 3. exd5 {[%emt 0:00:05]} cxd5 {[%emt 0:00:05]} 4. d4 {[%emt 0:00:50]} Nf6 {[%emt 0:01:15]} 5. Nc3 {[%emt 0:00:31]} e6 {[%emt 0:00:31]} 6. c5 {[%emt 0:07:33]} b6 {[%emt 0:08:55]} 7. b4 {[%emt 0:09:29]} Be7 {[%emt 0:08:24]} 8. Bb5+ {[%emt 0:11:00]} Bd7 {[%emt 0:01:27]} 9. Qa4 {[%emt 0:03:22]} O-O {[%emt 0:05:07]} 10. Bf4 {[%emt 0:08:30]} a5 {[%emt 0:09:10]} 11. Rc1 {[%emt 0:22:39]} Bxb5 {[%emt 0:07:03]} 12. Nxb5 {[%emt 0:05:00]} Na6 {[%emt 0:04:52]} 13. a3 {[%emt 0:16:40]} axb4 {[%emt 0:06:07]} 14. axb4 {[%emt 0:02:54]} bxc5 {[%emt 0:04:39]} 15. bxc5 {[%emt 0:01:38]} Nxc5 {[%emt 0:00:13]} 16. Qc2 {[%emt 0:01:02]} Nce4 {[%emt 0:04:14]} 17. Ne2 {[%emt 0:02:50]} Bb4+ {[%emt 0:01:17]} 18. Nbc3 {[%emt 0:00:47]} Rc8 {[%emt 0:01:32]} 19. Qb3 {[%emt 0:00:56]} Qa5 {[%emt 0:00:27]} 0-1

[Event "CZE-ch U16 Girls 2020"]
[Site "Kouty nad Desnou"]
[Date "2020.03.08"]
[Round "2.2"]
[White "Gregurkova, Nikola"]
[Black "Dudova, Pavlina"]
[Result "1-0"]
[ECO "C15"]
[WhiteElo "1642"]
[BlackElo "1499"]
[Annotator "NA"]
[PlyCount "63"]
[EventDate "2020.03.07"]
[EventCountry "CZE"]
[SourceTitle "playchess.com"]
[Source "ChessBase"]
[SourceQuality "1"]
[TimeControl "5400+30"]

1. e4 {[%emt 0:00:00]} e6 {[%emt 0:00:00]} 2. d4 {[%emt 0:00:00]} d5 {[%emt 0:00:00]} 3. Nc3 {[%emt 0:02:19]} Bb4 {[%emt 0:00:16]} 4. Nge2 {[%emt 0:02:42]} Nf6 {[%emt 0:15:16]} 5. e5 {[%emt 0:07:14]} Ne4 {[%emt 0:04:01]} 6. a3 {[%emt 0:06:57]} Nxc3 {[%emt 0:03:35]} 7. Nxc3 {[%emt 0:01:42]} Bxc3+ {[%emt 0:00:52]} 8. bxc3 {[%emt 0:00:11]} c5 {[%emt 0:04:14]} 9. Qg4 {[%emt 0:10:20]} g6 {[%emt 0:02:45]} 10. Bb5+ {[%emt 0:17:22]} Bd7 {[%emt 0:02:50]} 11. Bxd7+ {[%emt 0:00:45]} Nxd7 {[%emt 0:00:26]} 12. O-O {[%emt 0:01:58]} Qc7 {[%emt 0:03:01]} 13. Bg5 {[%emt 0:10:39]} Nb6 {[%emt 0:25:35]} 14. Qh4 {[%emt 0:09:56]} h5 {[%emt 0:04:01]} 15. Rfe1 {[%emt 0:08:30]} Nc4 {[%emt 0:03:28]} 16. Bf6 {[%emt 0:03:31]} Rh7 {[%emt 0:02:33]} 17. Qg5 {[%emt 0:05:33]} Kd7 {[%emt 0:04:16]} 18. Reb1 {[%emt 0:03:10]} b6 {[%emt 0:02:00]} 19. a4 {[%emt 0:01:55]} Rb8 {[%emt 0:04:06]} 20. h4 {[%emt 0:01:30]} Na5 {[%emt 0:04:09]} 21. Be7 {[%emt 0:02:13]} Re8 {[%emt 0:03:34]} 22. Bd6 {[%emt 0:01:42]} Qc6 {[%emt 0:01:03]} 23. dxc5 {[%emt 0:00:38]} bxc5 {[%emt 0:00:43]} 24. Rb5 {[%emt 0:00:34]} Nb7 {[%emt 0:00:44]} 25. Rab1 {[%emt 0:00:32]} Nxd6 {[%emt 0:00:18]} 26. exd6 {[%emt 0:00:10]} Kxd6 {[%emt 0:01:04]} 27. Qf4+ {[%emt 0:00:51]} e5 {[%emt 0:03:24]} 28. Qf6+ {[%emt 0:00:23]} Kc7 {[%emt 0:02:11]} 29. Rb7+ {[%emt 0:00:36]} Qxb7 {[%emt 0:00:24]} 30. Rxb7+ {[%emt 0:00:01]} Kxb7 {[%emt 0:00:14]} 31. Qd6 {[%emt 0:00:35]} d4 {[%emt 0:00:53]} 32. Qd7+ {[%emt 0:00:23]} 1-0

[Event "CZE-ch U16 Girls 2020"]
[Site "Kouty nad Desnou"]
[Date "2020.03.08"]
[Round "2.3"]
[White "Semova, Lada"]
[Black "Vavrinkova, Anna"]
[Result "1/2-1/2"]
[ECO "B39"]
[WhiteElo "1477"]
[BlackElo "1622"]
[Annotator "NA"]
[PlyCount "88"]
[EventDate "2020.03.07"]
[EventCountry "CZE"]
[SourceTitle "playchess.com"]
[Source "ChessBase"]
[SourceQuality "1"]
[TimeControl "5400+30"]

1. e4 {[%emt 0:00:00]} c5 {[%emt 0:00:00]} 2. Nf3 {[%emt 0:00:00]} Nc6 {[%emt 0:00:10]} 3. d4 {[%emt 0:00:00]} cxd4 {[%emt 0:01:19]} 4. Nxd4 {[%emt 0:00:00]} g6 {[%emt 0:01:19]} 5. c4 {[%emt 0:00:05]} Bg7 {[%emt 0:01:10]} 6. Be3 {[%emt 0:00:07]} Nf6 {[%emt 0:03:21]} 7. Nc3 {[%emt 0:00:36]} Ng4 {[%emt 0:03:34]} 8. Qxg4 {[%emt 0:00:18]} Nxd4 {[%emt 0:00:13]} 9. Qd1 {[%emt 0:00:13]} Ne6 {[%emt 0:03:40]} 10. Be2 {[%emt 0:00:55]} O-O {[%emt 0:01:56]} 11. O-O {[%emt 0:00:24]} d6 {[%emt 0:02:55]} 12. Qd2 {[%emt 0:00:41]} Re8 {[%emt 0:02:15]} 13. Rad1 {[%emt 0:02:15]} b6 {[%emt 0:02:43]} 14. b4 {[%emt 0:04:20]} Bb7 {[%emt 0:02:30]} 15. Nd5 {[%emt 0:10:34]} Rc8 {[%emt 0:03:12]} 16. f4 {[%emt 0:07:40]} Nc7 {[%emt 0:04:26]} 17. f5 {[%emt 0:07:55]} Nxd5 {[%emt 0:06:29]} 18. exd5 {[%emt 0:06:34]} Rf8 {[%emt 0:12:54]} 19. Rf2 {[%emt 0:07:41]} Qc7 {[%emt 0:09:01]} 20. Rdf1 {[%emt 0:00:53]} Rce8 {[%emt 0:01:18]} 21. Bh6 {[%emt 0:02:37]} Bc8 {[%emt 0:04:05]} 22. Bxg7 {[%emt 0:26:28]} Kxg7 {[%emt 0:00:11]} 23. fxg6 {[%emt 0:00:03]} hxg6 {[%emt 0:03:46]} 24. h4 {[%emt 0:01:57]} f6 {[%emt 0:05:19]} 25. h5 {[%emt 0:00:45]} g5 {[%emt 0:00:15]} 26. Qd3 {[%emt 0:00:09]} f5 {[%emt 0:01:34]} 27. Rxf5 {[%emt 0:16:42]} Bxf5 {[%emt 0:08:49]} 28. Rxf5 {[%emt 0:00:04]} Rf6 {[%emt 0:01:04]} 29. Rxf6 {[%emt 0:03:39]} exf6 {[%emt 0:00:24]} 30. Qg6+ {[%emt 0:00:20]} Kf8 {[%emt 0:00:09]} 31. Qxf6+ {[%emt 0:00:41]} Qf7 {[%emt 0:00:44]} 32. Qxd6+ {[%emt 0:00:22]} Re7 {[%emt 0:00:55]} 33. Bg4 {[%emt 0:00:43]} Kg7 {[%emt 0:01:05]} 34. Be6 {[%emt 0:00:44]} Qf6 {[%emt 0:00:22]} 35. Kh2 {[%emt 0:00:29]} g4 {[%emt 0:00:32]} 36. Kg3 {[%emt 0:00:32]} Rf7 {[%emt 0:01:16]} 37. h6+ {[%emt 0:00:28]} Kxh6 {[%emt 0:00:23]} 38. c5 {[%emt 0:00:25]} Qf2+ {[%emt 0:00:27]} 39. Kh2 {[%emt 0:00:30]} Qh4+ {[%emt 0:01:05]} 40. Kg1 {[%emt 0:00:00]} Rf6 {[%emt 0:00:00]} 41. Qe5 {[%emt 0:00:00]} Qf2+ {[%emt 0:00:00]} 42. Kh2 {[%emt 0:00:00]} Qh4+ {[%emt 0:00:00]} 43. Kg1 {[%emt 0:00:00]} Qf2+ {[%emt 0:00:00]} 44. Kh2 {[%emt 0:00:00]} Qh4+ {[%emt 0:00:00]} 1/2-1/2

[Event "CZE-ch U16 Girls 2020"]
[Site "Kouty nad Desnou"]
[Date "2020.03.08"]
[Round "2.4"]
[White "Stastna, Martina"]
[Black "Habinova, Alice"]
[Result "1-0"]
[ECO "C68"]
[WhiteElo "1700"]
[BlackElo "1474"]
[Annotator "NA"]
[PlyCount "47"]
[EventDate "2020.03.07"]
[EventCountry "CZE"]
[SourceTitle "playchess.com"]
[Source "ChessBase"]
[SourceQuality "1"]
[TimeControl "5400+30"]

1. e4 {[%emt 0:00:00]} e5 {[%emt 0:00:00]} 2. Nf3 {[%emt 0:00:03]} Nc6 {[%emt 0:00:00]} 3. Bb5 {[%emt 0:00:39]} a6 {[%emt 0:00:13]} 4. Bxc6 {[%emt 0:00:40]} dxc6 {[%emt 0:00:21]} 5. h3 {[%emt 0:01:20]} Ne7 {[%emt 0:06:15]} 6. O-O {[%emt 0:03:06]} Ng6 {[%emt 0:03:19]} 7. d3 {[%emt 0:03:52]} Be7 {[%emt 0:02:50]} 8. Nbd2 {[%emt 0:07:10]} O-O {[%emt 0:02:58]} 9. Nc4 {[%emt 0:03:30]} Bd6 {[%emt 0:03:08]} 10. Nh2 {[%emt 0:05:02]} Be6 {[%emt 0:04:06]} 11. Nxd6 {[%emt 0:02:06]} cxd6 {[%emt 0:01:40]} 12. b3 {[%emt 0:01:53]} Qc7 {[%emt 0:03:05]} 13. Qf3 {[%emt 0:06:49]} Rad8 {[%emt 0:03:34]} 14. Qg3 {[%emt 0:09:59]} d5 {[%emt 0:03:27]} 15. Nf3 {[%emt 0:05:09]} f5 {[%emt 0:10:03]} 16. exf5 {[%emt 0:06:20]} Bxf5 {[%emt 0:03:25]} 17. Bb2 {[%emt 0:03:56]} Nf4 {[%emt 0:08:01]} 18. Rae1 {[%emt 0:06:09]} Nxd3 {[%emt 0:09:50]} 19. cxd3 {[%emt 0:04:49]} Bxd3 {[%emt 0:00:53]} 20. Bxe5 {[%emt 0:00:44]} Qd7 {[%emt 0:01:04]} 21. Bc7 {[%emt 0:01:32]} Bxf1 {[%emt 0:05:41]} 22. Bxd8 {[%emt 0:01:13]} Qxd8 {[%emt 0:03:07]} 23. Kxf1 {[%emt 0:00:37]} d4 {[%emt 0:02:19]} 24. Qe5 {[%emt 0:01:10]} 1-0

[Event "CZE-ch U16 Girls 2020"]
[Site "Kouty nad Desnou"]
[Date "2020.03.08"]
[Round "2.5"]
[White "Londinova, Jasmina Marie"]
[Black "Leksova, Sona"]
[Result "1/2-1/2"]
[ECO "B01"]
[WhiteElo "1155"]
[BlackElo "1645"]
[Annotator "NA"]
[PlyCount "102"]
[EventDate "2020.03.07"]
[EventCountry "CZE"]
[SourceTitle "playchess.com"]
[Source "ChessBase"]
[SourceQuality "1"]
[TimeControl "5400+30"]

1. e4 {[%emt 0:00:00]} d5 {[%emt 0:00:00]} 2. exd5 {[%emt 0:00:00]} Qxd5 {[%emt 0:00:00]} 3. Nc3 {[%emt 0:00:28]} Qa5 {[%emt 0:00:00]} 4. d4 {[%emt 0:01:12]} c6 {[%emt 0:00:09]} 5. Nf3 {[%emt 0:01:07]} Nf6 {[%emt 0:00:39]} 6. Bd2 {[%emt 0:01:09]} Bg4 {[%emt 0:01:42]} 7. Be2 {[%emt 0:01:50]} Bxf3 {[%emt 0:01:25]} 8. Bxf3 {[%emt 0:00:19]} Qb6 {[%emt 0:00:16]} 9. Bc1 {[%emt 0:01:44]} e6 {[%emt 0:01:36]} 10. Qd3 {[%emt 0:02:48]} Nbd7 {[%emt 0:02:28]} 11. O-O {[%emt 0:01:13]} Rd8 {[%emt 0:06:09]} 12. Qc4 {[%emt 0:05:06]} Bd6 {[%emt 0:03:20]} 13. Re1 {[%emt 0:04:33]} O-O {[%emt 0:03:38]} 14. Ne4 {[%emt 0:03:50]} Qc7 {[%emt 0:01:47]} 15. Nxd6 {[%emt 0:01:14]} Qxd6 {[%emt 0:00:22]} 16. Qc3 {[%emt 0:00:45]} Nb6 {[%emt 0:01:15]} 17. Be3 {[%emt 0:04:49]} Nbd5 {[%emt 0:03:22]} 18. Bxd5 {[%emt 0:04:32]} cxd5 {[%emt 0:01:10]} 19. Bg5 {[%emt 0:01:56]} Rc8 {[%emt 0:02:23]} 20. Qd3 {[%emt 0:01:03]} Ng4 {[%emt 0:01:41]} 21. Qh3 {[%emt 0:02:48]} f5 {[%emt 0:01:08]} 22. c3 {[%emt 0:05:08]} b5 {[%emt 0:05:04]} 23. Rac1 {[%emt 0:02:00]} b4 {[%emt 0:00:50]} 24. f3 {[%emt 0:01:05]} Nf6 {[%emt 0:00:22]} 25. Bxf6 {[%emt 0:01:04]} Rxf6 {[%emt 0:00:14]} 26. g4 {[%emt 0:02:30]} fxg4 {[%emt 0:01:45]} 27. fxg4 {[%emt 0:00:24]} Rh6 {[%emt 0:00:52]} 28. Qg2 {[%emt 0:00:25]} bxc3 {[%emt 0:00:56]} 29. Rxc3 {[%emt 0:01:12]} Rxc3 {[%emt 0:02:03]} 30. bxc3 {[%emt 0:00:06]} Rg6 {[%emt 0:00:54]} 31. Re3 {[%emt 0:03:40]} Qf4 {[%emt 0:01:22]} 32. Rg3 {[%emt 0:01:58]} Qc1+ {[%emt 0:02:32]} 33. Qf1 {[%emt 0:00:37]} Qb2 {[%emt 0:00:44]} 34. Qf2 {[%emt 0:00:57]} Qb1+ {[%emt 0:00:32]} 35. Kg2 {[%emt 0:01:00]} Rf6 {[%emt 0:00:29]} 36. Qe2 {[%emt 0:01:23]} Kf7 {[%emt 0:03:18]} 37. Rf3 {[%emt 0:01:03]} Rxf3 {[%emt 0:00:13]} 38. Qxf3+ {[%emt 0:00:06]} Ke7 {[%emt 0:00:16]} 39. Qe2 {[%emt 0:00:44]} Qc1 {[%emt 0:00:53]} 40. Qa6 {[%emt 0:00:00]} Qd2+ {[%emt 0:00:00]} 41. Kg1 {[%emt 0:00:00]} Qe1+ {[%emt 0:00:00]} 42. Kg2 {[%emt 0:00:00]} Qe4+ {[%emt 0:00:00]} 43. Kf2 {[%emt 0:00:00]} Qf4+ {[%emt 0:00:00]} 44. Ke1 {[%emt 0:00:00]} Qc7 {[%emt 0:00:00]} 45. Qa3+ {[%emt 0:00:00]} Kf7 {[%emt 0:00:00]} 46. Qb2 {[%emt 0:00:00]} g5 {[%emt 0:00:00]} 47. Qd2 {[%emt 0:00:00]} h6 {[%emt 0:00:00]} 48. Kf1 {[%emt 0:00:00]} Kg7 {[%emt 0:00:00]} 49. Kg2 {[%emt 0:00:00]} e5 {[%emt 0:00:00]} 50. dxe5 {[%emt 0:00:00]} Qxe5 {[%emt 0:00:00]} 51. Qd4 {[%emt 0:00:00]} Qxd4 {[%emt 0:00:00]} 1/2-1/2

[Event "CZE-ch U16 Girls 2020"]
[Site "Kouty nad Desnou"]
[Date "2020.03.08"]
[Round "2.6"]
[White "Vsetulova, Viktorie"]
[Black "Ruzickova, Ema"]
[Result "1-0"]
[ECO "A48"]
[WhiteElo "1334"]
[BlackElo "1409"]
[Annotator "NA RC"]
[PlyCount "179"]
[EventDate "2020.03.07"]
[EventCountry "CZE"]
[SourceTitle "playchess.com"]
[Source "ChessBase"]
[SourceQuality "1"]
[TimeControl "5400+30"]

1. d4 {[%emt 0:00:00]} Nf6 {[%emt 0:00:00]} 2. Nf3 {[%emt 0:00:00]} g6 {[%emt 0:00:00]} 3. Bf4 {[%emt 0:00:06]} Bg7 {[%emt 0:00:35]} 4. e3 {[%emt 0:00:52]} O-O {[%emt 0:00:57]} 5. Bd3 {[%emt 0:01:18]} d6 {[%emt 0:12:15]} 6. O-O {[%emt 0:01:48]} Nfd7 {[%emt 0:07:01]} 7. e4 {[%emt 0:06:20]} Nc6 {[%emt 0:08:30]} 8. c3 {[%emt 0:02:43]} e5 {[%emt 0:02:35]} 9. Be3 {[%emt 0:02:32]} Ne7 {[%emt 0:15:03]} 10. Qd2 {[%emt 0:04:39]} Kh8 {[%emt 0:07:07]} 11. Bh6 {[%emt 0:04:00]} Qe8 {[%emt 0:01:57]} 12. Bxg7+ {[%emt 0:03:09]} Kxg7 {[%emt 0:00:11]} 13. Qg5 {[%emt 0:02:27]} h6 {[%emt 0:05:36]} 14. Qg3 {[%emt 0:01:30]} Nc6 {[%emt 0:01:26]} 15. Nbd2 {[%emt 0:08:34]} Kh7 {[%emt 0:02:35]} 16. Nc4 {[%emt 0:05:56]} Nf6 {[%emt 0:05:20]} 17. h4 {[%emt 0:03:46]} Nh5 {[%emt 0:09:31]} 18. Qh2 {[%emt 0:02:57]} Nf4 {[%emt 0:01:54]} 19. Rad1 {[%emt 0:10:50]} f6 {[%emt 0:01:49]} 20. d5 {[%emt 0:04:32]} Ne7 {[%emt 0:01:01]} 21. g3 {[%emt 0:02:26]} Nh5 {[%emt 0:03:28]} 22. Ne3 {[%emt 0:02:39]} Rh8 {[%emt 0:03:12]} 23. Kg2 {[%emt 0:02:48]} Kg7 {[%emt 0:00:54]} 24. Rg1 {[%emt 0:01:22]} Bd7 {[%emt 0:01:26]} 25. Kf1 {[%emt 0:01:52]} Qc8 {[%emt 0:01:06]} 26. g4 {[%emt 0:02:02]} Nf4 {[%emt 0:00:17]} 27. Qg3 {[%emt 0:01:35]} Qf8 {[%emt 0:02:54]} 28. g5 {[%emt 0:02:33]} h5 {[%emt 0:00:11]} 29. gxf6+ {[%emt 0:00:30]} Qxf6 {[%emt 0:00:15]} 30. Ng5 {[%emt 0:01:49]} Rhg8 {[%emt 0:00:56]} 31. Ng2 {[%emt 0:03:24]} Kh6 {[%emt 0:01:11]} 32. Nxf4 {[%emt 0:00:55]} exf4 {[%emt 0:00:23]} 33. Qg2 {[%emt 0:01:31]} Bg4 {[%emt 0:00:50]} 34. f3 {[%emt 0:00:31]} Bd7 {[%emt 0:00:16]} 35. Ke2 {[%emt 0:02:56]} Rae8 {[%emt 0:01:05]} 36. Kd2 {[%emt 0:00:41]} c6 {[%emt 0:01:04]} 37. dxc6 {[%emt 0:01:20]} Nxc6 {[%emt 0:01:02]} 38. Kc1 {[%emt 0:01:45]} Ne5 {[%emt 0:00:44]} 39. Bc2 {[%emt 0:00:52]} Nc4 {[%emt 0:00:43]} 40. Qe2 {[%emt 0:00:00]} Ne3 {[%emt 0:00:00]} 41. Rxd6 {[%emt 0:00:00]} Qe7 {[%emt 0:00:00]} 42. Bb3 {[%emt 0:00:00]} Rg7 {[%emt 0:00:00]} 43. Qd3 {[%emt 0:00:00]} Bc8 {[%emt 0:00:00]} 44. Ne6 {[%emt 0:00:00]} Bxe6 {[%emt 0:00:00]} 45. Bxe6 {[%emt 0:00:00]} Qxh4 {[%emt 0:00:00]} 46. Bf5 {[%emt 0:00:00]} Nxf5 {[%emt 0:00:00]} 47. exf5 {[%emt 0:00:00]} Re1+ {[%emt 0:00:00]} 48. Rxe1 {[%emt 0:00:22]} Qxe1+ {[%emt 0:00:00]} 49. Kc2 {[%emt 0:00:35]} Qf2+ {[%emt 0:00:00]} 50. Kb3 {[%emt 0:00:28]} Qg1 {[%emt 0:00:00]} 51. Qe4 {[%emt 0:02:36]} Qg5 {[%emt 0:00:00]} 52. Re6 {[%emt 0:02:47]} h4 {[%emt 0:00:00]} 53. Qe5 {[%emt 0:02:23]} Kh7 {[%emt 0:00:00]} 54. fxg6+ {[%emt 0:02:12]} Kh6 {[%emt 0:02:50]} 55. Qd4 {[%emt 0:00:55]} h3 {[%emt 0:01:11]} 56. Re5 {[%emt 0:02:40]} Qh4 {[%emt 0:02:06]} 57. Rf5 {[%emt 0:00:28]} Qe7 {[%emt 0:01:21]} 58. Qxf4+ {[%emt 0:00:25]} Kxg6 {[%emt 0:00:40]} 59. Qg4+ {[%emt 0:00:21]} Kh7 {[%emt 0:00:16]} 60. Qxh3+ {[%emt 0:00:56]} Kg8 {[%emt 0:00:30]} 61. f4 {[%emt 0:00:23]} Qe6+ {[%emt 0:00:08]} 62. c4 {[%emt 0:00:23]} Qb6+ {[%emt 0:00:55]} 63. Kc3 {[%emt 0:00:17]} Qc6 {[%emt 0:01:18]} 64. Re5 {[%emt 0:01:12]} Kf8 {[%emt 0:01:32]} 65. Qf5+ {[%emt 0:00:22]} Rf7 {[%emt 0:00:15]} 66. Qe4 {[%emt 0:00:16]} Qf6 {[%emt 0:00:23]} 67. f5 {[%emt 0:00:33]} a6 {[%emt 0:00:36]} 68. Kc2 {[%emt 0:00:38]} Kg7 {[%emt 0:00:36]} 69. Re6 {[%emt 0:00:29]} Qxf5 {[%emt 0:01:37]} 70. Qxf5 {[%emt 0:00:27]} Rxf5 {[%emt 0:00:04]} 71. Re7+ {[%emt 0:00:08]} Rf7 {[%emt 0:00:33]} 72. Rxf7+ {[%emt 0:01:01]} Kxf7 {[%emt 0:00:04]} 73. Kd3 {[%emt 0:00:15]} Ke6 {[%emt 0:00:56]} 74. Ke4 {[%emt 0:00:07]} Kd6 {[%emt 0:00:10]} 75. Kd4 {[%emt 0:00:06]} a5 {[%emt 0:00:22]} 76. a3 {[%emt 0:01:09]} b6 {[%emt 0:01:06]} 77. b4 {[%emt 0:00:25]} Kc6 {[%emt 0:00:50]} 78. b5+ {[%emt 0:00:42]} Kc7 {[%emt 0:00:44]} 79. Ke5 {[%emt 0:00:45]} Kd7 {[%emt 0:00:31]} 80. a4 {[%emt 0:00:35]} Ke7 {[%emt 0:00:12]} 81. Kd5 {[%emt 0:00:07]} Kd7 {[%emt 0:00:06]} 82. c5 {[%emt 0:00:18]} bxc5 {[%emt 0:00:24]} 83. Kxc5 {[%emt 0:00:06]} Kc7 {[%emt 0:00:06]} 84. b6+ {[%emt 0:00:07]} Kb7 {[%emt 0:00:31]} 85. Kb5 {[%emt 0:00:06]} Kb8 {[%emt 0:00:17]} 86. Kxa5 {[%emt 0:00:06]} Kb7 {[%emt 0:00:04]} 87. Kb5 {[%emt 0:00:07]} Kb8 {[%emt 0:00:32]} 88. Ka6 {[%emt 0:00:33]} Ka8 {[%emt 0:00:21]} 89. b7+ {[%emt 0:00:06]} Kb8 {[%emt 0:00:08]} 90. a5 {[%emt 0:00:07]} 1-0

[Event "CZE-ch U16 Girls 2020"]
[Site "Kouty nad Desnou"]
[Date "2020.03.08"]
[Round "2.7"]
[White "Maresova, Michaela"]
[Black "Kuncicka, Klara"]
[Result "0-1"]
[ECO "C54"]
[WhiteElo "1422"]
[BlackElo "1223"]
[Annotator "NA"]
[PlyCount "118"]
[EventDate "2020.03.07"]
[EventCountry "CZE"]
[SourceTitle "playchess.com"]
[Source "ChessBase"]
[SourceQuality "1"]
[TimeControl "5400+30"]

1. e4 {[%emt 0:00:00]} e5 {[%emt 0:00:00]} 2. d4 {[%emt 0:00:00]} exd4 {[%emt 0:00:00]} 3. Nf3 {[%emt 0:00:00]} Nc6 {[%emt 0:00:14]} 4. Bc4 {[%emt 0:00:00]} Bc5 {[%emt 0:00:23]} 5. c3 {[%emt 0:00:31]} Nf6 {[%emt 0:05:57]} 6. e5 {[%emt 0:11:35]} d5 {[%emt 0:00:48]} 7. exf6 {[%emt 0:07:15]} dxc4 {[%emt 0:00:36]} 8. cxd4 {[%emt 0:12:04]} Nxd4 {[%emt 0:06:21]} 9. Nxd4 {[%emt 0:09:11]} Qxd4 {[%emt 0:02:56]} 10. Qxd4 {[%emt 0:01:48]} Bxd4 {[%emt 0:00:12]} 11. fxg7 {[%emt 0:00:58]} Bxg7 {[%emt 0:00:11]} 12. Nc3 {[%emt 0:02:13]} c6 {[%emt 0:06:36]} 13. O-O {[%emt 0:05:08]} O-O {[%emt 0:02:31]} 14. Re1 {[%emt 0:03:39]} Be6 {[%emt 0:04:35]} 15. Bg5 {[%emt 0:06:54]} Bxc3 {[%emt 0:21:18]} 16. bxc3 {[%emt 0:00:31]} Rfe8 {[%emt 0:01:08]} 17. Rad1 {[%emt 0:08:41]} Bf5 {[%emt 0:03:12]} 18. Re3 {[%emt 0:11:51]} Rxe3 {[%emt 0:01:35]} 19. Bxe3 {[%emt 0:00:17]} a6 {[%emt 0:01:35]} 20. Rd4 {[%emt 0:01:50]} b5 {[%emt 0:05:17]} 21. h3 {[%emt 0:06:56]} Be6 {[%emt 0:07:19]} 22. a3 {[%emt 0:03:43]} a5 {[%emt 0:09:24]} 23. Kf1 {[%emt 0:03:40]} b4 {[%emt 0:01:45]} 24. cxb4 {[%emt 0:00:45]} axb4 {[%emt 0:00:12]} 25. axb4 {[%emt 0:00:16]} Kf8 {[%emt 0:11:37]} 26. Ke2 {[%emt 0:01:49]} Ra2+ {[%emt 0:02:22]} 27. Rd2 {[%emt 0:00:22]} Ra8 {[%emt 0:01:13]} 28. Rb2 {[%emt 0:01:06]} c3 {[%emt 0:01:31]} 29. Rc2 {[%emt 0:00:17]} Bc4+ {[%emt 0:00:13]} 30. Kd1 {[%emt 0:00:37]} Bb3 {[%emt 0:00:16]} 31. g3 {[%emt 0:00:53]} Bxc2+ {[%emt 0:00:50]} 32. Kxc2 {[%emt 0:00:07]} Ke8 {[%emt 0:00:39]} 33. Kxc3 {[%emt 0:00:14]} Kd7 {[%emt 0:00:12]} 34. Kc4 {[%emt 0:00:27]} Ra2 {[%emt 0:00:38]} 35. b5 {[%emt 0:00:59]} cxb5+ {[%emt 0:00:39]} 36. Kxb5 {[%emt 0:00:11]} Rc2 {[%emt 0:00:17]} 37. Kb4 {[%emt 0:00:34]} Ke6 {[%emt 0:00:33]} 38. Kb3 {[%emt 0:00:42]} Rc8 {[%emt 0:00:05]} 39. Kb4 {[%emt 0:00:28]} Kd5 {[%emt 0:01:29]} 40. Kb3 {[%emt 0:00:00]} Ke4 {[%emt 0:00:00]} 41. Kb4 {[%emt 0:00:00]} Rg8 {[%emt 0:00:00]} 42. Kc4 {[%emt 0:00:00]} Rc8+ {[%emt 0:00:00]} 43. Kb4 {[%emt 0:00:00]} Kd5 {[%emt 0:00:00]} 44. Kb3 {[%emt 0:00:00]} Ke6 {[%emt 0:00:00]} 45. Kb4 {[%emt 0:00:00]} Kd7 {[%emt 0:00:00]} 46. Kb5 {[%emt 0:00:00]} Ke6 {[%emt 0:00:00]} 47. Kb4 {[%emt 0:00:00]} Kd5 {[%emt 0:00:00]} 48. Kb3 {[%emt 0:00:00]} Ke4 {[%emt 0:00:00]} 49. Kb4 {[%emt 0:00:00]} Kf3 {[%emt 0:00:00]} 50. Kb3 {[%emt 0:00:00]} f5 {[%emt 0:00:00]} 51. h4 {[%emt 0:00:00]} h5 {[%emt 0:00:00]} 52. Kb2 {[%emt 0:00:00]} Re8 {[%emt 0:00:00]} 53. Bf4 {[%emt 0:00:00]} Re2+ {[%emt 0:00:00]} 54. Kc3 {[%emt 0:00:00]} Rxf2 {[%emt 0:00:00]} 55. Kd3 {[%emt 0:00:00]} Kg4 {[%emt 0:00:00]} 56. Bc7 {[%emt 0:00:00]} Rf3+ {[%emt 0:00:00]} 57. Ke2 {[%emt 0:00:00]} Rxg3 {[%emt 0:00:00]} 58. Bxg3 {[%emt 0:00:00]} Kxg3 {[%emt 0:00:00]} 59. Ke3 {[%emt 0:00:00]} f4+ {[%emt 0:00:00]} 0-1